[Event "Open Cappelle-la-Grande"]
[Date "2026.02.24"]
[White "Razafindratsima, Timothe"]
[Black "Eugene, Floryan"]
[WhiteElo "2504"]
[BlackElo "2478"]
[Round "5.5.1"]
[Result "1-0"]
[TimeControl "40/5400+30:1800+30"]

e4 {[%clk 1:30:55]} e6 {[%clk 1:30:53]} d4 {[%clk 1:31:20]} d5 {[%clk 1:31:19]}
e5 {[%clk 1:31:46]} c5 {[%clk 1:31:26]} c3 {[%clk 1:32:09]} Nc6 {[%clk 1:31:49]}
Nf3 {[%clk 1:32:34]} Bd7 {[%clk 1:32:10]} Be2 {[%clk 1:32:58]} Nge7 {[%clk
1:31:27]} O-O {[%clk 1:32:37]} cxd4 {[%clk 1:31:09]} cxd4 {[%clk 1:33:00]} Nf5
{[%clk 1:31:30]} Nc3 {[%clk 1:32:16]} a6 {[%clk 1:31:05]} a3 {[%clk 1:32:42]}
Rc8 {[%clk 1:26:57]} Kh1 {[%clk 1:32:30]} Be7 {[%clk 1:26:28]} g4 {[%clk
1:30:36]} Nh4 {[%clk 1:26:33]} Nxh4 {[%clk 1:31:02]} Bxh4 {[%clk 1:26:57]} f4
{[%clk 1:31:28]} Be7 {[%clk 1:26:08]} Be3 {[%clk 1:24:21]} Na5 {[%clk 1:18:53]}
Rf3 {[%clk 1:22:18]} b5 {[%clk 1:03:15]} Bd3 {[%clk 1:10:10]} Qb6 {[%clk
0:57:39]} Ne2 {[%clk 1:08:43]} Nc4 {[%clk 0:45:22]} Bc1 {[%clk 1:08:58]} Na5
{[%clk 0:45:32]} b3 {[%clk 0:58:26]} Nc6 {[%clk 0:45:23]} Be3 {[%clk 0:58:52]}
b4 {[%clk 0:41:09]} a4 {[%clk 0:58:13]} Kd8 {[%clk 0:39:09]} f5 {[%clk 0:54:52]}
h5 {[%clk 0:29:35]} gxh5 {[%clk 0:45:10]} Rxh5 {[%clk 0:23:36]} Qg1 {[%clk
0:33:15]} Kc7 {[%clk 0:21:56]} Qxg7 {[%clk 0:16:49]} Rch8 {[%clk 0:21:54]} Bg1
{[%clk 0:16:34]} R5h7 {[%clk 0:14:42]} Qg2 {[%clk 0:16:10]} Rh4 {[%clk 0:14:52]}
Rc1 {[%clk 0:14:32]} Kb8 {[%clk 0:14:03]} Rg3 {[%clk 0:12:31]} Qd8 {[%clk
0:12:57]} f6 {[%clk 0:12:50]} Bf8 {[%clk 0:12:52]} Bxa6 {[%clk 0:12:48]} Bh6
{[%clk 0:12:32]} Rc5 {[%clk 0:12:24]} Bf8 {[%clk 0:11:52]} Rc2 {[%clk 0:12:19]}
Na5 {[%clk 0:12:04]} Nc1 {[%clk 0:07:08]} Nc6 {[%clk 0:08:14]} Ne2 {[%clk
0:06:53]} Na5 {[%clk 0:08:25]} Nc1 {[%clk 0:07:20]} Nc6 {[%clk 0:08:38]} Rg4
{[%clk 0:07:07]} Rh3 {[%clk 0:08:24]} Bb5 {[%clk 0:04:49]} Rc3 {[%clk 0:07:58]}
Na2 {[%clk 0:02:31]} Rxc2 {[%clk 0:08:04]} Qxc2 {[%clk 0:02:56]} Qb6 {[%clk
0:05:45]} Qg2 {[%clk 0:27:50]} Qd8 {[%clk 0:32:15]} Rg8 {[%clk 0:24:46]} Rxg8
{[%clk 0:32:40]} Qxg8 {[%clk 0:25:12]} Qe8 {[%clk 0:33:07]} Be3 {[%clk 0:25:20]}
Kb7 {[%clk 0:33:29]} Nc1 {[%clk 0:18:43]} Kb6 {[%clk 0:33:40]} Bxc6 {[%clk
0:11:44]} Bxc6 {[%clk 0:34:04]} h4 {[%clk 0:10:37]} Bb7 {[%clk 0:32:42]} Bh6
{[%clk 0:07:59]}

[Variant "Standard"]
[Site "Europe Echecs"]

[Event "Open Cappelle-la-Grande"]
[Date "2026.02.24"]
[White "Favaloro, Andrea"]
[Black "Pranesh M"]
[WhiteElo "2409"]
[BlackElo "2627"]
[Round "5.5.2"]
[Result "1/2-1/2"]
[TimeControl "40/5400+30:1800+30"]

Nf3 {[%clk 1:27:57]} d5 {[%clk 1:30:56]} g3 {[%clk 1:28:09]} Nc6 {[%clk
1:31:20]} d4 {[%clk 1:28:21]} Bf5 {[%clk 1:31:42]} Bg2 {[%clk 1:28:38]} Nb4
{[%clk 1:32:01]} Na3 {[%clk 1:28:56]} e6 {[%clk 1:32:21]} Nh4 {[%clk 1:29:15]}
Be4 {[%clk 1:32:04]} f3 {[%clk 1:29:27]} Bg6 {[%clk 1:32:30]} c3 {[%clk
1:29:25]} Nc6 {[%clk 1:32:43]} Nxg6 {[%clk 1:29:23]} hxg6 {[%clk 1:33:09]} Nc2
{[%clk 1:26:28]} Bd6 {[%clk 1:32:36]} O-O {[%clk 1:26:24]} Rxh2 {[%clk 1:29:56]}
Kxh2 {[%clk 1:26:48]} Qh4+ {[%clk 1:30:23]} Kg1 {[%clk 1:27:10]} Bxg3 {[%clk
1:30:49]} Re1 {[%clk 1:27:34]} Nf6 {[%clk 1:30:53]} e4 {[%clk 1:27:38]} Nh5
{[%clk 1:22:51]} exd5 {[%clk 1:27:21]} Qh2+ {[%clk 1:12:23]} Kf1 {[%clk
1:27:14]} Bh4 {[%clk 1:12:38]} dxc6 {[%clk 1:27:33]} Ng3+ {[%clk 1:11:39]} Kf2
{[%clk 1:27:53]} Nh1+ {[%clk 1:11:21]} Kf1 {[%clk 1:27:58]} Ng3+ {[%clk
1:11:45]} Kf2 {[%clk 1:28:24]}

[Variant "Standard"]
[Site "Europe Echecs"]

[Event "Open Cappelle-la-Grande"]
[Date "2026.02.24"]
[White "Pranav Anand"]
[Black "Poetsch, Hagen"]
[WhiteElo "2606"]
[BlackElo "2433"]
[Round "5.5.3"]
[Result "1/2-1/2"]
[TimeControl "40/5400+30:1800+30"]

e4 {[%clk 1:30:58]} c6 {[%clk 1:28:39]} d4 {[%clk 1:31:18]} d5 {[%clk 1:29:05]}
e5 {[%clk 1:31:44]} c5 {[%clk 1:29:27]} Nf3 {[%clk 1:32:05]} cxd4 {[%clk
1:29:12]} Nxd4 {[%clk 1:32:19]} Nc6 {[%clk 1:29:36]} Nxc6 {[%clk 1:32:45]} bxc6
{[%clk 1:30:03]} Bd3 {[%clk 1:33:09]} e6 {[%clk 1:30:27]} Qe2 {[%clk 1:33:27]}
Ne7 {[%clk 1:28:19]} Nd2 {[%clk 1:33:44]} c5 {[%clk 1:03:08]} c3 {[%clk
1:24:54]} Nc6 {[%clk 1:03:16]} Nf3 {[%clk 1:24:57]} Be7 {[%clk 1:02:47]} h4
{[%clk 1:23:41]} Qb6 {[%clk 0:48:11]} h5 {[%clk 1:19:15]} a5 {[%clk 0:44:25]} h6
{[%clk 1:17:05]} g6 {[%clk 0:44:38]} O-O {[%clk 1:11:52]} Ba6 {[%clk 0:44:33]}
Rd1 {[%clk 1:05:03]} O-O {[%clk 0:42:31]} Rb1 {[%clk 1:02:52]} Bxd3 {[%clk
0:39:20]} Rxd3 {[%clk 1:02:58]} Rae8 {[%clk 0:24:33]} Bf4 {[%clk 0:54:29]} Qb5
{[%clk 0:24:16]} b3 {[%clk 0:50:22]} a4 {[%clk 0:22:41]} Bg5 {[%clk 0:45:34]}
axb3 {[%clk 0:22:36]} axb3 {[%clk 0:44:13]} Rb8 {[%clk 0:17:21]} Qe3 {[%clk
0:39:54]} Qb7 {[%clk 0:08:55]} Ra1 {[%clk 0:30:23]} Bxg5 {[%clk 0:08:12]} Nxg5
{[%clk 0:30:52]} Qe7 {[%clk 0:08:14]} Ra6 {[%clk 0:26:18]} Rfc8 {[%clk 0:08:27]}
Qf4 {[%clk 0:25:50]} Rxb3 {[%clk 0:08:23]} Rf3 {[%clk 0:26:05]} Rb7 {[%clk
0:05:19]} g3 {[%clk 0:25:12]} Nb8 {[%clk 0:04:00]} Ra8 {[%clk 0:17:28]} Rf8
{[%clk 0:04:07]} Qg4 {[%clk 0:17:46]} Nc6 {[%clk 0:02:33]} Rxf7 {[%clk 0:15:59]}
Rxa8 {[%clk 0:01:48]} Rg7+ {[%clk 0:14:34]} Kh8 {[%clk 0:01:40]} Qf4 {[%clk
0:12:40]} Qxg7 {[%clk 0:01:08]} hxg7+ {[%clk 0:13:08]} Kg8 {[%clk 0:00:52]} Nxe6
{[%clk 0:07:21]} Rf7 {[%clk 0:01:18]} Qd2 {[%clk 0:07:40]} d4 {[%clk 0:01:15]}
cxd4 {[%clk 0:05:05]} cxd4 {[%clk 0:01:24]} Qe2 {[%clk 0:04:22]} Re8 {[%clk
0:01:09]} Qa2 {[%clk 0:03:56]} Nxe5 {[%clk 0:00:42]} f4 {[%clk 0:30:01]} d3
{[%clk 0:23:00]} Ng5 {[%clk 0:20:16]} d2 {[%clk 0:18:39]} Qxd2 {[%clk 0:19:25]}
h6 {[%clk 0:19:02]} fxe5 {[%clk 0:18:49]} hxg5 {[%clk 0:19:26]} Qxg5 {[%clk
0:19:16]} Kxg7 {[%clk 0:19:46]} Kg2 {[%clk 0:19:00]}

[Variant "Standard"]
[Site "Europe Echecs"]

[Event "Open Cappelle-la-Grande"]
[Date "2026.02.24"]
[White "Can, Emre"]
[Black "Flom, Gabriel"]
[WhiteElo "2541"]
[BlackElo "2423"]
[Round "5.5.4"]
[Result "1-0"]
[TimeControl "40/5400+30:1800+30"]

e4 {[%clk 1:29:21]} e6 {[%clk 1:29:04]} d4 {[%clk 1:29:19]} d5 {[%clk 1:29:31]}
e5 {[%clk 1:29:20]} c5 {[%clk 1:29:18]} c3 {[%clk 1:29:29]} Ne7 {[%clk 1:28:57]}
Nf3 {[%clk 1:28:51]} Nf5 {[%clk 1:29:09]} dxc5 {[%clk 1:20:36]} Bxc5 {[%clk
1:29:08]} Bd3 {[%clk 1:20:27]} Nc6 {[%clk 1:27:05]} O-O {[%clk 1:17:36]} Nh4
{[%clk 1:06:47]} Nbd2 {[%clk 1:14:40]} Ng6 {[%clk 1:06:56]} Nb3 {[%clk 1:01:41]}
Bb6 {[%clk 1:07:23]} Re1 {[%clk 1:00:41]} O-O {[%clk 1:00:49]} Nbd4 {[%clk
0:48:12]} h6 {[%clk 0:50:40]} Nxc6 {[%clk 0:34:22]} bxc6 {[%clk 0:51:07]} Qa4
{[%clk 0:34:44]} Qe8 {[%clk 0:49:18]} b4 {[%clk 0:26:31]} f5 {[%clk 0:44:00]}
Be3 {[%clk 0:25:44]} Bd7 {[%clk 0:44:22]} Bc5 {[%clk 0:25:17]} Nf4 {[%clk
0:41:07]} Bf1 {[%clk 0:25:32]} Qg6 {[%clk 0:28:04]} Kh1 {[%clk 0:25:56]} Rfb8
{[%clk 0:23:48]} Rab1 {[%clk 0:24:02]} Qg4 {[%clk 0:17:25]} Nd4 {[%clk 0:21:59]}
Ng6 {[%clk 0:16:49]} Qc2 {[%clk 0:17:36]} Bc7 {[%clk 0:15:11]} Nf3 {[%clk
0:16:59]} Bb6 {[%clk 0:14:26]} Qd2 {[%clk 0:13:40]} Nh4 {[%clk 0:12:54]} Nd4
{[%clk 0:11:53]} f4 {[%clk 0:13:21]} Be7 {[%clk 0:05:15]} f3 {[%clk 0:08:21]} g3
{[%clk 0:04:54]} Nf5 {[%clk 0:07:24]} Nxf5 {[%clk 0:03:30]} Qxf5 {[%clk
0:07:51]} Bd6 {[%clk 0:03:37]} Rc8 {[%clk 0:07:20]} Ba6 {[%clk 0:03:09]} Rd8
{[%clk 0:05:54]} a4 {[%clk 0:02:47]} Re8 {[%clk 0:04:49]} a5 {[%clk 0:02:52]}
Bd8 {[%clk 0:05:16]} Qd3 {[%clk 0:02:08]} Qxd3 {[%clk 0:04:29]} Bxd3 {[%clk
0:02:36]} Be7 {[%clk 0:04:50]} Bc5 {[%clk 0:01:46]} Bg5 {[%clk 0:02:05]} Rb2
{[%clk 0:01:51]} Kf7 {[%clk 0:01:28]} h4 {[%clk 0:01:58]} Be7 {[%clk 0:01:57]}
Re3 {[%clk 0:00:42]} Bxc5 {[%clk 0:02:25]} Rxf3+ {[%clk 0:01:00]} Ke7 {[%clk
0:02:53]} bxc5 {[%clk 0:01:23]} Reb8 {[%clk 0:01:36]} Rb4 {[%clk 0:01:36]} Rxb4
{[%clk 0:26:13]} cxb4 {[%clk 0:31:20]} g5 {[%clk 0:23:26]} Rf6 {[%clk 0:28:36]}
gxh4 {[%clk 0:23:39]} g4 {[%clk 0:14:21]} Rg8 {[%clk 0:22:44]} Be2 {[%clk
0:14:37]} h5 {[%clk 0:18:38]} gxh5 {[%clk 0:14:43]} Be8 {[%clk 0:19:07]} h6
{[%clk 0:08:35]} Bg6 {[%clk 0:19:17]} Bg4 {[%clk 0:08:25]} Bf7 {[%clk 0:14:24]}
h7 {[%clk 0:08:31]} Rh8 {[%clk 0:14:46]} Rh6 {[%clk 0:08:47]} d4 {[%clk
0:13:53]} Be2 {[%clk 0:08:14]} Kf8 {[%clk 0:13:57]} Bd3 {[%clk 0:08:38]} Kg7
{[%clk 0:14:14]} Rxh4 {[%clk 0:09:01]} Bg6 {[%clk 0:14:38]} Rg4 {[%clk 0:08:47]}
Rxh7+ {[%clk 0:15:06]} Kg2 {[%clk 0:08:59]} Rh6 {[%clk 0:15:35]} b5 {[%clk
0:09:04]}

[Variant "Standard"]
[Site "Europe Echecs"]

[Event "Open Cappelle-la-Grande"]
[Date "2026.02.24"]
[White "Rohith Krishna S"]
[Black "Bassini, Emile"]
[WhiteElo "2484"]
[BlackElo "2409"]
[Round "5.5.5"]
[Result "1-0"]
[TimeControl "40/5400+30:1800+30"]

c4 {[%clk 1:30:46]} g6 {[%clk 1:30:39]} Nf3 {[%clk 1:31:07]} Bg7 {[%clk
1:31:00]} d4 {[%clk 1:31:31]} Nf6 {[%clk 1:31:27]} g3 {[%clk 1:31:56]} O-O
{[%clk 1:31:48]} Bg2 {[%clk 1:32:22]} d6 {[%clk 1:32:14]} Nc3 {[%clk 1:32:47]}
c5 {[%clk 1:31:57]} O-O {[%clk 1:33:08]} Nc6 {[%clk 1:32:21]} d5 {[%clk
1:33:34]} Na5 {[%clk 1:32:48]} Nd2 {[%clk 1:33:57]} e6 {[%clk 1:32:46]} Rb1
{[%clk 1:34:20]} exd5 {[%clk 1:32:43]} cxd5 {[%clk 1:34:33]} Bd7 {[%clk
1:32:58]} b4 {[%clk 1:30:48]} cxb4 {[%clk 1:33:20]} Rxb4 {[%clk 1:31:13]} b6
{[%clk 1:22:15]} Nb5 {[%clk 1:17:17]} Bxb5 {[%clk 0:40:03]} Rxb5 {[%clk
1:17:02]} Re8 {[%clk 0:36:55]} Bb2 {[%clk 1:13:14]} Rc8 {[%clk 0:30:01]} e3
{[%clk 1:12:57]} Nc4 {[%clk 0:21:27]} Nxc4 {[%clk 1:11:01]} Rxc4 {[%clk
0:21:50]} Qa1 {[%clk 1:10:57]} a6 {[%clk 0:20:23]} Rb3 {[%clk 1:11:07]} b5
{[%clk 0:20:52]} Rd1 {[%clk 1:11:01]} Qe7 {[%clk 0:18:52]} Re1 {[%clk 0:48:27]}
Rec8 {[%clk 0:16:52]} e4 {[%clk 0:46:36]} Rc2 {[%clk 0:16:39]} Bf3 {[%clk
0:39:15]} Rxb2 {[%clk 0:08:29]} Qxb2 {[%clk 0:39:18]} Nxd5 {[%clk 0:08:56]} Qa3
{[%clk 0:32:27]} Nc7 {[%clk 0:05:41]} Rd3 {[%clk 0:30:48]} Rd8 {[%clk 0:05:16]}
Rdd1 {[%clk 0:24:41]} Be5 {[%clk 0:02:27]} Bg2 {[%clk 0:24:15]} Rb8 {[%clk
0:02:50]} Rb1 {[%clk 0:15:29]} Bd4 {[%clk 0:02:33]} Qd3 {[%clk 0:15:45]} Qf6
{[%clk 0:01:56]} Re2 {[%clk 0:16:02]} Ne6 {[%clk 0:02:17]} Rd1 {[%clk 0:14:04]}
Bc5 {[%clk 0:01:26]} Kh1 {[%clk 0:13:22]} g5 {[%clk 0:00:58]} Qd5 {[%clk
0:11:11]} Rd8 {[%clk 0:00:37]} Qb7 {[%clk 0:08:46]} Nd4 {[%clk 0:00:44]} Red2
{[%clk 0:08:30]} a5 {[%clk 0:00:47]} Qd5 {[%clk 0:08:26]} Ne6 {[%clk 0:00:46]}
Rd3 {[%clk 0:07:33]} Kg7 {[%clk 0:00:33]} Rf3 {[%clk 0:06:42]} Qe5 {[%clk
0:00:36]} Qb7 {[%clk 0:23:40]} Rf8 {[%clk 0:30:20]} Rf5 {[%clk 0:23:52]} Qb2
{[%clk 0:29:29]} Bf3 {[%clk 0:23:51]} Kg8 {[%clk 0:11:22]} Bh5 {[%clk 0:20:11]}
Qg7 {[%clk 0:11:23]} Qe7 {[%clk 0:20:30]} Kh8 {[%clk 0:10:42]} Rxf7 {[%clk
0:19:48]} Rxf7 {[%clk 0:11:02]} Bxf7 {[%clk 0:20:12]} Qc3 {[%clk 0:10:07]} Bh5
{[%clk 0:15:47]} Qe5 {[%clk 0:10:22]} Bg4 {[%clk 0:15:52]} h5 {[%clk 0:09:24]}
Qxe6 {[%clk 0:14:16]} hxg4 {[%clk 0:09:50]} Qxe5+ {[%clk 0:14:40]}

[Variant "Standard"]
[Site "Europe Echecs"]

[Event "Open Cappelle-la-Grande"]
[Date "2026.02.24"]
[White "Janzelj, Tim"]
[Black "Bacrot, Alexandre"]
[WhiteElo "2377"]
[BlackElo "2457"]
[Round "5.5.6"]
[Result "0-1"]
[TimeControl "40/5400+30:1800+30"]

e4 {[%clk 1:29:11]} d6 {[%clk 1:30:57]} d4 {[%clk 1:28:48]} Nf6 {[%clk 1:31:23]}
Bd3 {[%clk 1:28:33]} e5 {[%clk 1:30:57]} c3 {[%clk 1:28:28]} g6 {[%clk 1:31:23]}
Nf3 {[%clk 1:28:15]} Nc6 {[%clk 1:31:30]} O-O {[%clk 1:21:48]} Bg7 {[%clk
1:31:56]} Re1 {[%clk 1:20:47]} O-O {[%clk 1:32:14]} h3 {[%clk 1:19:00]} h6
{[%clk 1:31:49]} Nbd2 {[%clk 1:10:08]} Re8 {[%clk 1:32:01]} d5 {[%clk 1:10:02]}
Ne7 {[%clk 1:29:01]} c4 {[%clk 1:09:58]} Nd7 {[%clk 1:29:27]} b4 {[%clk
1:06:24]} a5 {[%clk 1:28:19]} bxa5 {[%clk 0:58:27]} Rxa5 {[%clk 1:28:42]} Nb3
{[%clk 0:57:34]} Ra8 {[%clk 1:24:18]} Bb2 {[%clk 0:50:35]} g5 {[%clk 1:12:50]}
c5 {[%clk 0:48:30]} dxc5 {[%clk 1:11:07]} Bb5 {[%clk 0:47:27]} c6 {[%clk
1:10:59]} dxc6 {[%clk 0:46:20]} Nxc6 {[%clk 1:03:11]} Bxc6 {[%clk 0:45:33]} bxc6
{[%clk 0:57:35]} Qc2 {[%clk 0:45:51]} Qb6 {[%clk 0:53:44]} Nfd2 {[%clk 0:43:43]}
Ba6 {[%clk 0:53:45]} Nc4 {[%clk 0:41:50]} Bxc4 {[%clk 0:53:45]} Qxc4 {[%clk
0:42:19]} Qb5 {[%clk 0:54:07]} Rec1 {[%clk 0:40:58]} Reb8 {[%clk 0:44:11]} Qxb5
{[%clk 0:28:09]} Rxb5 {[%clk 0:44:34]} Rc2 {[%clk 0:28:26]} f6 {[%clk 0:40:34]}
Nd2 {[%clk 0:24:18]} Nb6 {[%clk 0:40:28]} Nf1 {[%clk 0:21:41]} Bf8 {[%clk
0:39:12]} Bc1 {[%clk 0:18:30]} Ra4 {[%clk 0:31:09]} Ng3 {[%clk 0:17:59]} Nc4
{[%clk 0:30:23]} Ne2 {[%clk 0:14:10]} Na5 {[%clk 0:25:57]} Nc3 {[%clk 0:12:22]}
Rc4 {[%clk 0:21:18]} Kf1 {[%clk 0:11:44]} Rb8 {[%clk 0:21:15]} Ke2 {[%clk
0:08:45]} h5 {[%clk 0:21:28]} Be3 {[%clk 0:07:20]} Kf7 {[%clk 0:21:51]} g4
{[%clk 0:06:28]} h4 {[%clk 0:22:09]} Rac1 {[%clk 0:06:16]} Ke6 {[%clk 0:21:21]}
f3 {[%clk 0:06:40]} Be7 {[%clk 0:21:01]} Bd2 {[%clk 0:06:26]} Nb7 {[%clk
0:17:44]} Rb1 {[%clk 0:03:56]} Rb4 {[%clk 0:18:06]} Rcb2 {[%clk 0:02:53]} Ra8
{[%clk 0:16:00]} Nd1 {[%clk 0:18:36]} Rxb2 {[%clk 0:45:37]} Rxb2 {[%clk
0:19:04]} Nd6 {[%clk 0:45:42]} Nc3 {[%clk 0:11:56]} Bd8 {[%clk 0:34:23]} Be3
{[%clk 0:09:07]} c4 {[%clk 0:33:52]} Rb4 {[%clk 0:07:23]} Nb5 {[%clk 0:28:09]}
Rxc4 {[%clk 0:04:36]} Nxc3+ {[%clk 0:28:35]} Rxc3 {[%clk 0:05:04]} Rxa2+ {[%clk
0:28:59]} Kd3 {[%clk 0:05:34]} Ra6 {[%clk 0:25:02]} Bc5 {[%clk 0:05:48]} Be7
{[%clk 0:24:22]} Be3 {[%clk 0:05:19]} Bb4 {[%clk 0:24:33]} Rc4 {[%clk 0:04:46]}
Bd6 {[%clk 0:24:49]} Kc2 {[%clk 0:04:51]} Ra2+ {[%clk 0:25:03]} Kd3 {[%clk
0:04:52]} Kd7 {[%clk 0:25:08]} Rc2 {[%clk 0:05:20]} Ra3+ {[%clk 0:24:54]} Rc3
{[%clk 0:05:49]} Ra6 {[%clk 0:25:19]} Rb3 {[%clk 0:05:43]} Kc7 {[%clk 0:25:43]}
Bc1 {[%clk 0:02:25]} Ra4 {[%clk 0:23:23]} Kc2 {[%clk 0:02:12]} Bc5 {[%clk
0:22:27]} Bb2 {[%clk 0:02:34]} Bd4 {[%clk 0:22:31]} Ra3 {[%clk 0:02:40]} Rc4+
{[%clk 0:22:55]} Kb3 {[%clk 0:03:05]} Bxb2 {[%clk 0:23:08]} Kxb2 {[%clk
0:03:29]} Kb6 {[%clk 0:22:09]} Ra8 {[%clk 0:03:38]} Kc5 {[%clk 0:18:05]} Rf8
{[%clk 0:03:49]} Kd4 {[%clk 0:18:30]} Rxf6 {[%clk 0:04:10]} Rb4+ {[%clk
0:18:57]} Kc2 {[%clk 0:04:16]} c5 {[%clk 0:19:24]} Rd6+ {[%clk 0:03:17]} Ke3
{[%clk 0:19:50]} Rd5 {[%clk 0:03:41]} Kf4 {[%clk 0:19:26]} Rxc5 {[%clk 0:03:58]}
Ra4 {[%clk 0:19:47]} Kb2 {[%clk 0:01:14]} Ra8 {[%clk 0:19:59]} Rb5 {[%clk
0:01:20]} Re8 {[%clk 0:20:06]} Rb3 {[%clk 0:00:44]} Kg3 {[%clk 0:18:06]} Kc2
{[%clk 0:01:13]} Kxh3 {[%clk 0:18:22]} Kd2 {[%clk 0:01:03]} Kg2 {[%clk 0:18:35]}
Ke3 {[%clk 0:00:57]} h3 {[%clk 0:18:57]} Rb2+ {[%clk 0:01:23]} Kg3 {[%clk
0:19:23]} Rb1 {[%clk 0:01:08]} h2 {[%clk 0:19:48]} Ra1 {[%clk 0:01:35]} Rh8
{[%clk 0:20:05]}

[Variant "Standard"]
[Site "Europe Echecs"]

[Event "Open Cappelle-la-Grande"]
[Date "2026.02.24"]
[White "Lamaze, Simon"]
[Black "Godart, Francois"]
[WhiteElo "2450"]
[BlackElo "2372"]
[Round "5.5.7"]
[Result "1-0"]
[TimeControl "40/5400+30:1800+30"]

e4 {[%clk 1:30:57]} e6 {[%clk 1:30:52]} d4 {[%clk 1:31:22]} d5 {[%clk 1:31:19]}
Nc3 {[%clk 1:31:42]} dxe4 {[%clk 1:31:20]} Nxe4 {[%clk 1:32:03]} Nd7 {[%clk
1:31:47]} Nf3 {[%clk 1:31:03]} Ngf6 {[%clk 1:29:22]} Nxf6+ {[%clk 1:24:59]} Nxf6
{[%clk 1:29:18]} c3 {[%clk 1:25:08]} Be7 {[%clk 1:29:39]} Bd3 {[%clk 1:24:26]}
c5 {[%clk 1:29:56]} dxc5 {[%clk 1:20:27]} Qc7 {[%clk 1:30:19]} Qe2 {[%clk
1:17:23]} Qxc5 {[%clk 1:11:49]} Bg5 {[%clk 1:15:05]} h6 {[%clk 1:07:52]} Be3
{[%clk 1:09:23]} Qa5 {[%clk 1:02:50]} Bd4 {[%clk 1:07:58]} O-O {[%clk 1:00:20]}
O-O {[%clk 1:00:37]} Rd8 {[%clk 0:57:33]} Rfe1 {[%clk 0:50:45]} Bd7 {[%clk
0:50:28]} Ne5 {[%clk 0:50:50]} Be8 {[%clk 0:49:55]} a3 {[%clk 0:49:27]} Qc7
{[%clk 0:47:53]} Nf3 {[%clk 0:40:16]} Bc6 {[%clk 0:46:18]} Rad1 {[%clk 0:36:01]}
b6 {[%clk 0:36:04]} Ne5 {[%clk 0:35:45]} Be8 {[%clk 0:34:45]} Ng4 {[%clk
0:33:39]} Nxg4 {[%clk 0:27:32]} Qxg4 {[%clk 0:34:01]} Bf8 {[%clk 0:27:35]} h4
{[%clk 0:28:52]} Rd5 {[%clk 0:12:47]} Qe4 {[%clk 0:22:43]} g6 {[%clk 0:12:43]}
Qf3 {[%clk 0:19:51]} Rad8 {[%clk 0:08:15]} Be4 {[%clk 0:16:02]} Rh5 {[%clk
0:07:07]} Bf6 {[%clk 0:13:55]} Rxd1 {[%clk 0:05:59]} Rxd1 {[%clk 0:14:09]} Be7
{[%clk 0:06:09]} g3 {[%clk 0:13:13]} Bxf6 {[%clk 0:03:20]} Qxf6 {[%clk 0:13:36]}
Qe5 {[%clk 0:03:48]} Qe7 {[%clk 0:10:48]} Qxe4 {[%clk 0:03:56]} Qxe8+ {[%clk
0:11:15]} Kg7 {[%clk 0:04:21]} Rd8 {[%clk 0:11:41]} Kf6 {[%clk 0:02:01]} Rd7
{[%clk 0:10:06]} Qe1+ {[%clk 0:00:58]} Kg2 {[%clk 0:10:10]} Qe4+ {[%clk
0:00:39]} Kh2 {[%clk 0:10:33]} Kf5 {[%clk 0:00:34]} Rxf7+ {[%clk 0:10:54]} Ke5
{[%clk 0:00:39]} Qb5+ {[%clk 0:10:44]} Qd5 {[%clk 0:00:56]} f4+ {[%clk 0:11:07]}

[Variant "Standard"]
[Site "Europe Echecs"]

[Event "Open Cappelle-la-Grande"]
[Date "2026.02.24"]
[White "Chen, Muxi"]
[Black "Cheng, Bobby"]
[WhiteElo "2225"]
[BlackElo "2566"]
[Round "5.5.8"]
[Result "0-1"]
[TimeControl "40/5400+30:1800+30"]

e4 {[%clk 1:30:55]} c5 {[%clk 1:19:52]} Nf3 {[%clk 1:31:16]} d6 {[%clk 1:20:15]}
d4 {[%clk 1:31:39]} cxd4 {[%clk 1:20:41]} Nxd4 {[%clk 1:32:02]} Nf6 {[%clk
1:21:07]} Nc3 {[%clk 1:32:22]} a6 {[%clk 1:21:32]} Be2 {[%clk 1:32:44]} e5
{[%clk 1:21:50]} Nb3 {[%clk 1:33:07]} Be7 {[%clk 1:22:13]} Be3 {[%clk 1:33:27]}
Be6 {[%clk 1:22:29]} Nd5 {[%clk 1:33:41]} Nbd7 {[%clk 1:22:34]} Qd3 {[%clk
1:34:02]} Bxd5 {[%clk 1:22:42]} exd5 {[%clk 1:34:24]} Rc8 {[%clk 1:22:47]} c4
{[%clk 1:34:44]} O-O {[%clk 1:23:05]} O-O {[%clk 1:34:54]} a5 {[%clk 1:23:14]}
Rae1 {[%clk 1:34:14]} g6 {[%clk 1:23:16]} Kh1 {[%clk 1:34:23]} Re8 {[%clk
1:23:28]} f4 {[%clk 1:28:35]} a4 {[%clk 1:23:10]} Nd2 {[%clk 1:28:15]} exf4
{[%clk 1:23:20]} Bxf4 {[%clk 1:26:22]} Bf8 {[%clk 1:23:32]} Bg5 {[%clk 1:16:20]}
Bg7 {[%clk 1:23:56]} Qa3 {[%clk 1:14:15]} Qb6 {[%clk 1:05:04]} Bd1 {[%clk
1:02:20]} Rxe1 {[%clk 0:42:13]} Rxe1 {[%clk 1:02:36]} Nc5 {[%clk 0:42:38]} Be3
{[%clk 0:32:39]} Nfd7 {[%clk 0:42:53]} b4 {[%clk 0:31:16]} axb3 {[%clk 0:43:18]}
Nxb3 {[%clk 0:30:28]} Be5 {[%clk 0:37:39]} Bg1 {[%clk 0:22:55]} Kg7 {[%clk
0:27:46]} Bc2 {[%clk 0:21:28]} h5 {[%clk 0:24:02]} Nd4 {[%clk 0:20:05]} Qd8
{[%clk 0:22:10]} Qh3 {[%clk 0:17:48]} Ra8 {[%clk 0:18:44]} Nf3 {[%clk 0:09:57]}
Bf6 {[%clk 0:15:41]} Be3 {[%clk 0:05:02]} Qc8 {[%clk 0:04:25]} Bf4 {[%clk
0:04:07]} Rxa2 {[%clk 0:03:49]} Bb1 {[%clk 0:04:14]} Ra6 {[%clk 0:02:55]} Qg3
{[%clk 0:03:05]} Qf8 {[%clk 0:01:01]} Nh4 {[%clk 0:02:42]} Bxh4 {[%clk 0:00:32]}
Qxh4 {[%clk 0:03:07]} Ne5 {[%clk 0:00:33]} Bxe5+ {[%clk 0:01:11]} dxe5 {[%clk
0:01:02]} Rxe5 {[%clk 0:01:33]} Qd6 {[%clk 0:01:29]} Re1 {[%clk 0:01:32]} Nd7
{[%clk 0:00:33]} Qd4+ {[%clk 0:01:16]} Qf6 {[%clk 0:00:40]} Qxf6+ {[%clk
0:27:49]} Kxf6 {[%clk 0:28:32]} Be4 {[%clk 0:21:20]} Nc5 {[%clk 0:12:50]} Bf3
{[%clk 0:17:24]} Nd3 {[%clk 0:09:13]} Rb1 {[%clk 0:16:16]} Ra4 {[%clk 0:04:14]}
h3 {[%clk 0:14:17]} Rxc4 {[%clk 0:04:08]} Rxb7 {[%clk 0:09:51]} Rd4 {[%clk
0:03:47]} Kh2 {[%clk 0:09:17]} Ne5 {[%clk 0:03:59]} Rb3 {[%clk 0:09:02]} Kg5
{[%clk 0:04:12]} Ra3 {[%clk 0:07:06]} h4 {[%clk 0:04:16]} Rb3 {[%clk 0:06:39]}
Kf4 {[%clk 0:04:36]} Ra3 {[%clk 0:05:33]} f5 {[%clk 0:04:53]} d6 {[%clk
0:03:39]} Rxd6 {[%clk 0:02:17]} Ra4+ {[%clk 0:03:46]} Kg5 {[%clk 0:02:06]} Bb7
{[%clk 0:03:25]} Rb6 {[%clk 0:01:39]} Bd5 {[%clk 0:03:40]} Nd3 {[%clk 0:01:55]}
Bf3 {[%clk 0:03:30]} Nf4 {[%clk 0:02:08]} Rd4 {[%clk 0:03:37]} Rb2 {[%clk
0:02:28]} Rd6 {[%clk 0:03:44]} Rb1 {[%clk 0:02:40]} Rd2 {[%clk 0:03:55]} Rf1
{[%clk 0:02:51]} Bc6 {[%clk 0:03:48]} Nh5 {[%clk 0:02:50]} Bf3 {[%clk 0:03:32]}
Ng3 {[%clk 0:01:38]} Rd1 {[%clk 0:03:57]} Kf4 {[%clk 0:01:10]} Rxf1 {[%clk
0:04:12]} Nxf1+ {[%clk 0:01:39]} Kg1 {[%clk 0:04:06]} Nd2 {[%clk 0:02:06]} Bd5
{[%clk 0:03:32]} Kg3 {[%clk 0:02:22]} Bf7 {[%clk 0:03:38]} g5 {[%clk 0:02:44]}
Be6 {[%clk 0:03:43]} f4 {[%clk 0:02:09]} Bd7 {[%clk 0:03:31]} f3 {[%clk
0:01:25]} gxf3 {[%clk 0:03:38]} Nxf3+ {[%clk 0:00:48]} Kh1 {[%clk 0:03:49]} Nd4
{[%clk 0:00:47]} Bg4 {[%clk 0:04:05]} Nc2 {[%clk 0:00:55]} Kg1 {[%clk 0:04:08]}
Ne3 {[%clk 0:01:12]}

[Variant "Standard"]
[Site "Europe Echecs"]